bitfinex/quotes_BTCUSD_20241226
["timestamp","ask_amount","ask_price","bid_price","bid_amount"]
[1735209346485,0.00013775,95530.0,95529.0,0.2027953]
[1735209347503,0.00013775,95530.0,95529.0,0.19684195]
[1735209347949,0.00013775,95530.0,95529.0,0.20184195]
[1735209348149,0.00013775,95530.0,95529.0,0.19684195]
[1735209348348,0.00113775,95530.0,95529.0,0.19684195]
[1735209348532,0.00113775,95530.0,95529.0,0.20384195]
[1735209348834,0.00013775,95530.0,95529.0,0.20384195]
[1735209349036,0.00013775,95530.0,95529.0,0.20484195]
[1735209350356,0.18302407,95530.0,95529.0,0.10484195]
[1735209350590,0.18302407,95530.0,95529.0,0.1037953]
[1735209350789,0.18620998,95530.0,95529.0,0.1037953]
[1735209350985,0.18620998,95530.0,95529.0,0.008]
[1735209351217,0.18620998,95530.0,95529.0,0.1037953]
[1735209351368,0.18620998,95530.0,95529.0,0.008]
[1735209351572,0.23310998,95530.0,95529.0,0.008]
[1735209351775,0.23310998,95530.0,95529.0,0.1037953]
[1735209351977,0.23310998,95530.0,95529.0,0.008]
[1735209353059,0.38310998,95530.0,95529.0,0.008]
[1735209354034,0.76525551,95530.0,95529.0,0.008]
[1735209354165,1.08246993,95530.0,95529.0,0.008]
[1735209354369,1.05621398,95530.0,95529.0,0.008]
[1735209354772,1.05621398,95530.0,95529.0,0.001]
[1735209355166,0.0789,95515.0,95512.0,0.1]
[1735209355391,0.10716037,95514.0,95512.0,0.1]
[1735209355568,0.209395,95513.0,95512.0,0.1]
[1735209355770,0.3165548,95513.0,95512.0,0.1]
[1735209355971,0.3165548,95513.0,95512.0,0.1957953]
[1735209356177,0.3165548,95513.0,95512.0,0.1]
[1735209356381,0.3165548,95513.0,95512.0,0.1957953]
[1735209357119,0.3175548,95513.0,95512.0,0.1]
[1735209357279,0.3175548,95513.0,95512.0,0.104]
[1735209357456,0.3175548,95513.0,95512.0,0.1997953]
[1735209357656,0.3175548,95513.0,95512.0,0.104]
[1735209359692,0.3175548,95513.0,95512.0,0.1997953]
[1735209360507,0.1081598,95513.0,95512.0,0.1997953]
[1735209360712,0.00417348,95513.0,95512.0,0.1997953]
[1735209360913,0.001,95513.0,95512.0,0.20084213]
[1735209365319,0.001,95513.0,95512.0,0.1997953]
[1735209365520,0.10498632,95513.0,95512.0,0.0997953]
[1735209365772,0.10498632,95513.0,95512.0,0.1997953]
[1735209365894,0.10816215,95513.0,95512.0,0.104]
[1735209366534,0.10824765,95513.0,95512.0,0.104]
[1735209368966,0.10824765,95513.0,95512.0,0.1997953]
[1735209374337,0.10824765,95513.0,95512.0,0.104]
[1735209377493,0.10824765,95513.0,95512.0,0.1997953]
[1735209379656,0.10824765,95513.0,95512.0,0.104]
[1735209380808,0.10824765,95513.0,95512.0,0.1997953]
[1735209381589,0.10824765,95513.0,95512.0,0.004]
[1735209381793,0.33994765,95513.0,95512.0,0.004]
[1735209381992,0.71651861,95513.0,95512.0,0.004]
[1735209382397,0.73951861,95513.0,95512.0,0.004]
[1735209382752,0.54113,95497.0,95486.0,0.09390083]
[1735209382922,0.81724632,95497.0,95486.0,0.18969613]
[1735209383175,0.82040993,95497.0,95486.0,0.09390083]
[1735209383353,0.82040993,95497.0,95484.0,0.1957953]
[1735209383564,0.92439625,95497.0,95485.0,0.0957953]
[1735209383799,0.84340993,95497.0,95482.0,0.0957953]
[1735209383991,0.84340993,95497.0,95479.0,0.1]
[1735209384193,0.84340993,95497.0,95486.0,0.0957953]
[1735209384351,0.84640993,95497.0,95486.0,0.0957953]
[1735209385151,0.84340993,95497.0,95486.0,0.0957953]
[1735209385551,0.84540993,95497.0,95479.0,0.1]
[1735209385955,0.84340993,95497.0,95479.0,0.1]
[1735209386181,0.86594739,95497.0,95473.0,0.1]
[1735209386354,0.86994739,95497.0,95463.0,0.254704]
[1735209386559,0.86794739,95497.0,95471.0,0.1]
[1735209386744,0.87094739,95497.0,95471.0,0.1]
[1735209386950,0.87094739,95497.0,95479.0,0.1]
[1735209386951,0.86694739,95497.0,95479.0,0.1]
[1735209387154,0.86694739,95497.0,95496.0,0.001171]
[1735209387473,0.87194739,95497.0,95496.0,0.001171]
[1735209387672,0.86694739,95497.0,95496.0,0.000171]
[1735209388142,0.86894739,95497.0,95496.0,0.001171]
[1735209388320,0.87594739,95497.0,95496.0,0.002171]
[1735209388672,0.86894739,95497.0,95496.0,0.001171]
[1735209388992,0.87594739,95497.0,95496.0,0.002171]
[1735209389193,0.97993371,95497.0,95496.0,0.002171]
[1735209389395,0.93215035,95497.0,95496.0,0.002171]
[1735209389558,0.99015035,95497.0,95496.0,0.001171]
[1735209389765,0.99415035,95497.0,95496.0,0.001171]
[1735209390326,0.99015035,95497.0,95496.0,0.001171]
[1735209390673,0.99415035,95497.0,95496.0,0.001171]
[1735209390918,1.09813667,95497.0,95496.0,0.001171]
[1735209391221,1.08713667,95497.0,95496.0,0.000171]
[1735209391423,1.09813667,95497.0,95496.0,0.001171]
[1735209391625,1.09813667,95497.0,95496.0,0.000171]
[1735209391845,1.09813667,95497.0,95496.0,0.001171]
[1735209391976,1.00115035,95497.0,95496.0,0.001171]
[1735209392610,0.98715035,95497.0,95496.0,0.000171]
[1735209393015,0.99415035,95497.0,95496.0,0.001171]
[1735209393243,0.96500952,95497.0,95496.0,0.001171]
[1735209393420,0.96100952,95497.0,95496.0,0.001171]
[1735209393642,1.06899584,95497.0,95496.0,0.001171]
[1735209394012,1.06499584,95497.0,95496.0,0.001171]
[1735209394292,1.06199584,95497.0,95496.0,0.000171]
[1735209394534,1.06899584,95497.0,95496.0,0.001171]
[1735209394735,1.06199584,95497.0,95496.0,0.000171]
[1735209395137,0.86500952,95497.0,95496.0,0.001171]
[1735209395352,0.86100952,95497.0,95496.0,0.000171]
[1735209395730,0.96800952,95497.0,95496.0,0.001171]
[1735209395926,0.96100952,95497.0,95496.0,0.000171]
[1735209396207,0.96800952,95497.0,95496.0,0.001171]
[1735209396828,0.97200952,95497.0,95496.0,0.001171]
[1735209397304,0.96800952,95497.0,95496.0,0.001171]
[1735209397469,0.95400952,95497.0,95496.0,0.000171]
[1735209397680,0.95800952,95497.0,95496.0,0.000171]
[1735209397886,0.96400952,95497.0,95496.0,0.001171]
[1735209398201,1.06199584,95497.0,95496.0,0.000171]
[1735209398321,1.06699584,95497.0,95496.0,0.001171]
[1735209398526,1.06199584,95497.0,95496.0,0.000171]
[1735209398727,1.05799584,95497.0,95496.0,0.000171]
[1735209398927,1.06299584,95497.0,95496.0,0.001171]
[1735209399176,1.06299584,95497.0,95496.0,0.000171]
[1735209399323,1.03673989,95497.0,95496.0,0.000171]
[1735209399549,1.04173989,95497.0,95496.0,0.001171]
[1735209399777,0.59792357,95497.0,95496.0,0.001171]
[1735209399976,0.42738611,95497.0,95496.0,0.001171]
[1735209400210,0.22195611,95497.0,95496.0,0.001171]
[1735209400592,0.21795611,95497.0,95496.0,0.0969663]
[1735209400828,0.20795611,95497.0,95496.0,0.0959663]
[1735209401032,0.20804161,95497.0,95496.0,0.0959663]
[1735209401232,0.21204161,95497.0,95496.0,0.0959663]
[1735209401480,0.20804161,95497.0,95496.0,0.0959663]
[1735209401663,0.21204161,95497.0,95496.0,0.0964553]
[1735209401964,0.21204161,95497.0,95496.0,0.0974553]
[1735209402125,0.21204161,95497.0,95496.0,0.0964553]
[1735209402324,0.21504161,95497.0,95496.0,0.0964553]
[1735209402727,0.21204161,95497.0,95496.0,0.0964553]
[1735209403404,0.20804161,95497.0,95496.0,0.0964553]
[1735209404020,0.10804161,95497.0,95496.0,0.3218553]
[1735209404226,0.11204161,95497.0,95496.0,0.3218553]
[1735209404448,0.11604161,95497.0,95496.0,0.3218553]
[1735209404650,0.10804161,95497.0,95496.0,0.3218553]
[1735209404836,0.11104161,95497.0,95496.0,0.3218553]
[1735209405400,0.11204161,95497.0,95496.0,0.3218553]
[1735209405597,0.11104161,95497.0,95496.0,0.3218553]
[1735209405973,0.11104161,95497.0,95496.0,0.3268553]
[1735209406144,0.11104161,95497.0,95496.0,0.3218553]
[1735209406351,0.10407182,95497.0,95496.0,0.3218553]
[1735209406506,0.10507182,95497.0,95496.0,0.3218553]
[1735209406708,0.10903647,95497.0,95496.0,0.3218553]
[1735209406910,0.10803647,95497.0,95496.0,0.3218553]
[1735209407560,0.10803647,95497.0,95496.0,0.3268553]
[1735209407786,0.10803647,95497.0,95496.0,0.3218553]
[1735209407974,0.10407182,95497.0,95496.0,0.3218553]
[1735209408173,0.10507182,95497.0,95496.0,0.3248553]
[1735209408415,0.10903647,95497.0,95496.0,0.3218553]
[1735209408818,0.10903647,95497.0,95496.0,0.3248553]
[1735209408977,0.10507182,95497.0,95496.0,0.3218553]
[1735209409178,0.10507182,95497.0,95496.0,0.3248553]
[1735209409503,0.10407182,95497.0,95496.0,0.3248553]
[1735209409781,0.10507182,95497.0,95496.0,0.3248553]
[1735209409968,0.10903647,95497.0,95496.0,0.3248553]
[1735209410169,0.10803647,95497.0,95496.0,0.3248553]
[1735209410499,0.10803647,95497.0,95496.0,0.3218553]
[1735209410500,0.10903647,95497.0,95496.0,0.3218553]
[1735209410723,0.10903647,95497.0,95496.0,0.3248553]
[1735209411139,0.10507182,95497.0,95496.0,0.35434083]
[1735209411337,0.10507182,95497.0,95496.0,0.3248553]
[1735209411534,0.1090525,95497.0,95496.0,0.3248553]
[1735209411735,0.10507182,95497.0,95496.0,0.3218553]
[1735209412068,0.10507182,95497.0,95496.0,0.3248553]
[1735209412069,0.1090525,95497.0,95496.0,0.3248553]
[1735209412394,0.1080525,95497.0,95496.0,0.3218553]
[1735209412784,0.1090525,95497.0,95496.0,0.3218553]
[1735209413207,0.1080525,95497.0,95496.0,0.3218553]
[1735209413644,0.1080525,95497.0,95496.0,0.3258553]
[1735209413846,0.1080525,95497.0,95496.0,0.3218553]
[1735209414050,0.10407182,95497.0,95496.0,0.3218553]
[1735209414200,0.10407182,95497.0,95496.0,0.3258553]
[1735209414364,0.1080525,95497.0,95496.0,0.3218553]
[1735209414843,0.1080525,95497.0,95496.0,0.3248553]
[1735209415270,0.10407182,95497.0,95496.0,0.3248553]
[1735209415646,0.1090525,95497.0,95496.0,0.3248553]
[1735209416444,0.1090525,95497.0,95496.0,0.35734083]
[1735209416643,0.1090525,95497.0,95496.0,0.3248553]
[1735209416847,0.10507182,95497.0,95496.0,0.3248553]
[1735209417361,0.1090525,95497.0,95496.0,0.3248553]
[1735209421501,0.1090525,95497.0,95496.0,0.3218553]
[1735209421704,0.1080525,95497.0,95496.0,0.3218553]
[1735209421914,0.10407182,95497.0,95496.0,0.3258553]
[1735209422136,0.1080525,95497.0,95496.0,0.3258553]
[1735209422356,0.10407182,95497.0,95496.0,0.3258553]
[1735209422545,0.10805178,95497.0,95496.0,0.3258553]
[1735209422702,0.10407182,95497.0,95496.0,0.3258553]
[1735209422895,0.1080525,95497.0,95496.0,0.3258553]
[1735209423101,0.10407182,95497.0,95496.0,0.37938493]
[1735209423323,0.1080525,95497.0,95496.0,0.37938493]
[1735209423632,0.10407182,95497.0,95496.0,0.37938493]
[1735209423826,8.55e-05,95497.0,95496.0,0.3258553]
[1735209424683,8.55e-05,95497.0,95496.0,0.3218553]
[1735209424897,0.0020855,95497.0,95496.0,0.3278553]
[1735209425256,0.0020855,95497.0,95496.0,0.3218553]
[1735209425465,0.0010855,95497.0,95496.0,0.3218553]
[1735209425664,0.0010855,95497.0,95496.0,0.40592823]
[1735209426681,0.0020855,95497.0,95496.0,0.41192823]
[1735209427026,8.55e-05,95497.0,95496.0,0.3218553]
[1735209427228,0.0010855,95497.0,95496.0,0.3308553]
[1735209427671,8.55e-05,95497.0,95496.0,0.22606]
[1735209427869,8.55e-05,95497.0,95496.0,0.23506]
[1735209428069,0.0010855,95497.0,95496.0,0.23506]
[1735209428271,0.0010855,95497.0,95496.0,0.22606]
[1735209428497,0.0020855,95497.0,95496.0,0.23506]
[1735209428658,0.0020855,95497.0,95496.0,0.15796]
[1735209428858,0.11008309,95497.0,95496.0,0.15796]
[1735209429203,0.10607182,95497.0,95496.0,0.10966]
[1735209429403,0.11008309,95497.0,95496.0,0.10966]
[1735209429735,0.11008309,95497.0,95496.0,0.00966]
[1735209429924,0.10808309,95497.0,95496.0,0.10066]
[1735209430064,0.10908309,95497.0,95496.0,0.10566]
[1735209430411,0.10908309,95497.0,95496.0,0.00066]
[1735209430609,0.10908309,95497.0,95496.0,0.10466]
[1735209431060,0.10808309,95497.0,95496.0,0.10066]
[1735209431200,0.10908309,95497.0,95496.0,0.00566]
[1735209431409,0.10908309,95497.0,95496.0,0.10066]
[1735209431880,0.11008309,95497.0,95496.0,0.1994553]
[1735209432242,0.11008309,95497.0,95496.0,0.10366]
[1735209432438,0.10908309,95497.0,95496.0,0.10366]
[1735209433033,0.10808309,95497.0,95496.0,0.10066]
[1735209433236,0.10908309,95497.0,95496.0,0.10566]
[1735209433621,0.10908309,95497.0,95496.0,0.10066]
[1735209433833,0.10908309,95497.0,95496.0,0.1974553]
[1735209434034,0.10908309,95497.0,95496.0,0.00166]
[1735209434434,0.11274709,95497.0,95496.0,0.0974553]
[1735209435171,0.11074709,95497.0,95496.0,0.00166]
[1735209435407,0.11274709,95497.0,95496.0,0.00166]
[1735209435755,0.11074709,95497.0,95496.0,0.00166]
[1735209435957,0.10974709,95497.0,95496.0,0.00066]
[1735209436167,0.11174709,95497.0,95496.0,0.0964553]
[1735209436373,0.11174709,95497.0,95496.0,0.0974553]
[1735209436753,0.11174709,95497.0,95496.0,0.0964553]
[1735209437539,0.10974709,95497.0,95496.0,0.0964553]
[1735209437917,0.11174709,95497.0,95496.0,0.0964553]
[1735209438292,0.10974709,95497.0,95496.0,0.0964553]
[1735209438531,0.11174709,95497.0,95496.0,0.0964553]
[1735209439370,0.10974709,95497.0,95496.0,0.0964553]
[1735209439575,0.10974709,95497.0,95496.0,0.00066]
[1735209440896,0.10925809,95497.0,95496.0,0.000171]
[1735209441420,0.11125809,95497.0,95496.0,0.000171]
[1735209441923,0.10925809,95497.0,95496.0,0.000171]
[1735209442164,0.11125809,95497.0,95496.0,0.000171]
[1735209443496,0.11125809,95497.0,95496.0,0.0959663]
[1735209444647,0.11125809,95497.0,95496.0,0.000171]
[1735209445492,0.5208691,95497.0,95496.0,0.000171]
[1735209445689,1.42839481,95497.0,95496.0,0.000171]
[1735209445891,1.43016081,95497.0,95496.0,0.000171]
[1735209446356,1.38516981,95497.0,95496.0,0.000171]
[1735209446566,0.7322128,95497.0,95496.0,0.000171]
[1735209446798,0.47805709,95497.0,95496.0,0.000171]
[1735209447026,0.73270269,95497.0,95496.0,0.000171]
[1735209447695,0.73670269,95497.0,95496.0,0.000171]
[1735209447831,0.74078829,95497.0,95496.0,0.000171]
[1735209448338,0.54914269,95497.0,95496.0,0.000171]
[1735209448689,0.27134369,95497.0,95496.0,0.000171]
[1735209449313,0.47048969,95497.0,95496.0,0.000171]
[1735209450368,0.59747601,95497.0,95496.0,0.000171]
[1735209450542,0.49348969,95497.0,95496.0,0.000171]
[1735209451715,0.63455555,95497.0,95496.0,0.000171]
[1735209452787,0.49348969,95497.0,95496.0,0.000171]
[1735209453986,0.5234367,95497.0,95496.0,0.000171]
[1735209454191,0.6013367,95497.0,95496.0,0.000171]
[1735209454395,0.57138969,95497.0,95496.0,0.000171]
[1735209454798,0.67537601,95497.0,95496.0,0.000171]
[1735209455195,0.92646382,95497.0,95496.0,0.000171]
[1735209455867,0.8224775,95497.0,95496.0,0.000171]
[1735209457436,0.6233315,95497.0,95496.0,0.000171]
[1735209457636,1.26239369,95497.0,95496.0,0.000171]
[1735209457844,1.41239369,95497.0,95496.0,0.000171]
[1735209458049,1.40178369,95497.0,95496.0,0.000171]
[1735209459292,1.32414369,95497.0,95496.0,0.000171]
[1735209460074,1.31292469,95497.0,95496.0,0.000171]
[1735209461110,1.85106272,95497.0,95496.0,1e-06]
[1735209461331,1.92520643,95497.0,95496.0,1e-06]
[1735209462098,1.92100173,95497.0,95496.0,1e-06]
[1735209462293,0.372448,95489.0,95488.0,0.4132317]
[1735209462497,1.62133432,95489.0,95488.0,0.4132317]
[1735209462702,4.27455965,95489.0,95488.0,0.4132317]
[1735209462925,4.18231365,95489.0,95488.0,0.4132317]
[1735209463282,4.19924229,95489.0,95488.0,0.4132317]
[1735209463655,4.18242329,95489.0,95488.0,0.4132317]
[1735209463873,4.18102083,95489.0,95488.0,0.4132317]
[1735209464289,4.28500715,95489.0,95488.0,0.4132317]
[1735209464620,4.29000715,95489.0,95488.0,0.4132317]
[1735209465241,4.29500715,95489.0,95488.0,0.4132317]
[1735209465660,4.48273992,95489.0,95488.0,0.4132317]
[1735209465960,4.34186692,95489.0,95488.0,0.4132317]
[1735209466434,4.32250492,95489.0,95488.0,0.4132317]
[1735209467013,4.30210892,95489.0,95488.0,0.4132317]
[1735209467423,3.76175115,95489.0,95488.0,0.4132317]
[1735209467921,3.60097315,95489.0,95488.0,0.4132317]
[1735209468114,1.67546683,95489.0,95488.0,0.4132317]
[1735209468325,1.59756683,95489.0,95488.0,0.4132317]
[1735209468583,2.82987619,95489.0,95488.0,0.4132317]
[1735209469351,2.80887919,95489.0,95488.0,0.4132317]
[1735209470407,2.90270743,95489.0,95488.0,0.4132317]
[1735209470613,2.92000709,95489.0,95488.0,0.4132317]
[1735209471183,2.90270743,95489.0,95488.0,0.4134029]
[1735209471928,2.8388262,95489.0,95488.0,0.4134029]
[1735209472251,2.85621109,95489.0,95488.0,0.4134029]
[1735209472632,2.82626408,95489.0,95488.0,0.4134029]
[1735209472819,2.9302504,95489.0,95488.0,0.4134029]
[1735209473117,2.96019741,95489.0,95488.0,0.4134029]
[1735209473696,2.85621109,95489.0,95488.0,0.4134029]
[1735209474509,2.99695646,95489.0,95488.0,0.4134029]
[1735209475528,2.85621109,95489.0,95488.0,0.4134029]
[1735209475759,2.82626408,95489.0,95488.0,0.4134029]
[1735209476392,2.74026408,95489.0,95488.0,0.4134029]
[1735209476641,0.23557508,95489.0,95488.0,0.5966029]
[1735209477033,0.21319019,95489.0,95488.0,0.5966029]
[1735209477235,0.20819019,95489.0,95488.0,0.5966029]
[1735209477499,0.21319019,95489.0,95488.0,0.5966029]
[1735209477659,0.21619019,95489.0,95488.0,0.5966029]
[1735209477885,0.36119019,95489.0,95488.0,0.5966029]
[1735209479536,0.35819019,95489.0,95488.0,0.5966029]
[1735209479746,0.36319019,95489.0,95488.0,0.5976029]
[1735209480025,0.36719019,95489.0,95488.0,0.5966029]
[1735209480290,0.36719019,95489.0,95488.0,0.4966029]
[1735209480448,0.3941372,95489.0,95488.0,0.4134029]
[1735209480618,0.9802892,95489.0,95488.0,0.4134029]
[1735209480825,0.60665019,95489.0,95488.0,0.4134029]
[1735209481390,0.60365019,95489.0,95488.0,0.4134029]
[1735209481597,0.60665019,95489.0,95488.0,0.4134029]
[1735209481799,0.36119019,95489.0,95488.0,0.4134029]
[1735209482126,0.75789219,95489.0,95488.0,0.4134029]
[1735209482369,0.75789219,95489.0,95488.0,0.5091982]
[1735209482558,0.36119019,95489.0,95488.0,0.5091982]
[1735209482936,0.36219019,95489.0,95488.0,0.5091982]
[1735209484418,0.36219019,95489.0,95488.0,0.4134029]
[1735209484623,0.36219019,95489.0,95488.0,0.5091982]
[1735209485698,0.21219019,95489.0,95488.0,0.6876982]
[1735209485843,0.21219019,95489.0,95488.0,0.7345982]
[1735209486121,0.20919019,95489.0,95488.0,0.7345982]
[1735209486286,0.21119019,95489.0,95488.0,0.7345982]
[1735209486689,0.00820387,95489.0,95488.0,0.7345982]
[1735209486907,0.00520387,95489.0,95488.0,0.7345982]
[1735209487126,0.003,95489.0,95488.0,0.7355982]
[1735209489063,0.10698632,95489.0,95488.0,0.7355982]
[1735209489696,0.11150656,95489.0,95488.0,0.7355982]
[1735209490055,0.003,95489.0,95488.0,1.01860802]
[1735209490255,0.003,95489.0,95488.0,0.9450482]
[1735209490677,0.003,95489.0,95488.0,1.1450482]
[1735209490891,8.56e-05,95496.0,95495.0,0.4052303]
[1735209491104,8.56e-05,95496.0,95495.0,0.5306303]
[1735209492163,8.56e-05,95496.0,95495.0,0.6306303]
[1735209492360,8.56e-05,95496.0,95495.0,0.83461662]
[1735209493355,0.0010856,95496.0,95495.0,0.84361662]
[1735209493559,8.56e-05,95496.0,95495.0,0.83461662]
[1735209493767,0.0010856,95496.0,95495.0,0.84561662]
[1735209494222,0.0010856,95496.0,95495.0,0.84361662]
[1735209494421,0.0010856,95496.0,95495.0,0.84661662]
[1735209495398,0.0010856,95496.0,95495.0,0.83761662]
[1735209495605,8.56e-05,95496.0,95495.0,0.83761662]
[1735209495787,0.0010856,95496.0,95495.0,0.7426303]
[1735209496243,0.0010856,95496.0,95495.0,0.5426303]
[1735209496542,0.0020856,95496.0,95495.0,0.455835]
[1735209496703,8.56e-05,95496.0,95495.0,0.434835]
[1735209496909,0.0010856,95496.0,95495.0,0.445835]
[1735209497139,0.0010856,95496.0,95495.0,0.436835]
[1735209497469,0.0020856,95496.0,95495.0,0.443835]
[1735209497792,0.0020856,95496.0,95495.0,0.445835]
[1735209498566,0.0020856,95496.0,95495.0,0.5416303]
[1735209498794,8.56e-05,95496.0,95495.0,0.5326303]
[1735209499000,0.0010856,95496.0,95495.0,0.6416303]
[1735209499246,0.0010856,95496.0,95495.0,0.83661662]
[1735209499644,0.0020856,95496.0,95495.0,0.84561662]
[1735209499916,0.0010856,95496.0,95495.0,0.84361662]
[1735209500121,0.0020856,95496.0,95495.0,0.85461662]
[1735209500316,0.0010856,95496.0,95495.0,0.83661662]
[1735209500789,0.0010856,95496.0,95495.0,0.83461662]
[1735209501037,0.0010856,95496.0,95495.0,0.6326303]
[1735209501235,0.0010856,95496.0,95495.0,0.436835]
[1735209501955,8.56e-05,95496.0,95495.0,0.436835]
[1735209502127,8.56e-05,95496.0,95495.0,0.434835]
[1735209502534,8.56e-05,95496.0,95495.0,0.436835]
[1735209502738,0.0010856,95496.0,95495.0,0.445835]
[1735209502974,8.56e-05,95496.0,95495.0,0.434835]
[1735209503381,0.0010856,95496.0,95495.0,0.444835]
[1735209503582,0.0010856,95496.0,95495.0,0.5326303]
[1735209503727,0.0010856,95496.0,95495.0,0.5306303]
[1735209503929,0.0020856,95496.0,95495.0,0.5376303]
[1735209504145,0.0020856,95496.0,95495.0,0.5386303]
[1735209504983,8.56e-05,95496.0,95495.0,0.5316303]
[1735209505304,0.0010856,95496.0,95495.0,0.5396303]
[1735209505632,8.56e-05,95496.0,95495.0,0.5306303]
[1735209505807,8.56e-05,95496.0,95495.0,0.5316303]
[1735209505962,0.0010856,95496.0,95495.0,0.5386303]
[1735209506169,0.0010856,95496.0,95495.0,0.5306303]
[1735209506486,0.0020856,95496.0,95495.0,0.64461662]
[1735209506651,8.56e-05,95496.0,95495.0,0.63661662]
[1735209507053,0.0010856,95496.0,95495.0,0.64161662]
[1735209507256,0.0010856,95496.0,95495.0,0.64261662]
[1735209507672,0.0010856,95496.0,95495.0,0.5386303]
[1735209508424,8.56e-05,95496.0,95495.0,0.5316303]
[1735209508637,0.0010856,95496.0,95495.0,0.5396303]
[1735209508832,0.0010856,95496.0,95495.0,0.5316303]
[1735209509059,0.0010856,95496.0,95495.0,0.5306303]
[1735209509185,0.0020856,95496.0,95495.0,0.5376303]
[1735209509393,0.0010856,95496.0,95495.0,0.5326303]
[1735209509709,0.0010856,95496.0,95495.0,0.5406303]
[1735209509911,0.0020856,95496.0,95495.0,0.5386303]
[1735209510111,0.0020856,95496.0,95495.0,0.5316303]
[1735209510112,0.0010856,95496.0,95495.0,0.5316303]
[1735209510316,0.0020856,95496.0,95495.0,0.5386303]
[1735209510531,0.0020856,95496.0,95495.0,0.2334]
[1735209510705,0.0020856,95496.0,95495.0,0.2324]
[1735209510908,0.0020856,95496.0,95495.0,0.2344]
[1735209511458,8.56e-05,95496.0,95495.0,0.2274]
[1735209511752,8.56e-05,95496.0,95495.0,0.3311953]
[1735209512068,0.0010856,95496.0,95495.0,0.3231953]
[1735209512217,0.0010856,95496.0,95495.0,0.42718162]
[1735209512436,0.0020856,95496.0,95495.0,0.43418162]
[1735209512635,8.56e-05,95496.0,95495.0,0.42518162]
[1735209512836,8.56e-05,95496.0,95495.0,0.42618162]
[1735209513063,0.0010856,95496.0,95495.0,0.43418162]
[1735209513259,0.0010856,95496.0,95495.0,0.42618162]
[1735209513468,0.0010856,95496.0,95495.0,0.2254]
[1735209513631,0.0020856,95496.0,95495.0,0.2334]
[1735209513831,0.0020856,95496.0,95495.0,0.1549]
[1735209514166,0.0020856,95496.0,95495.0,0.10804701]
[1735209514568,0.0020856,95496.0,95495.0,0.11004701]
[1735209514745,8.56e-05,95496.0,95495.0,0.30133332]
[1735209514944,8.56e-05,95496.0,95495.0,0.20449101]
[1735209515122,0.0010856,95496.0,95495.0,0.21353802]
[1735209515328,8.56e-05,95496.0,95495.0,0.102]
[1735209515525,8.56e-05,95496.0,95495.0,0.11004701]
[1735209515723,0.0010856,95496.0,95495.0,0.10804701]
[1735209515962,0.0010856,95496.0,95495.0,0.20484231]
[1735209516151,0.0010856,95496.0,95495.0,0.30882863]
[1735209516356,0.0010856,95496.0,95495.0,0.30778162]
[1735209516567,8.56e-05,95496.0,95495.0,0.29978162]
[1735209516738,0.0010856,95496.0,95495.0,0.30778162]
[1735209516940,0.0010856,95496.0,95495.0,0.2047953]
[1735209517498,0.0010856,95496.0,95495.0,0.108]
[1735209517701,0.0010856,95496.0,95495.0,0.008]
[1735209517918,8.56e-05,95496.0,95495.0,0.1]
[1735209518325,0.0010856,95496.0,95495.0,0.107]
[1735209518443,8.56e-05,95496.0,95495.0,0.1]
[1735209518648,8.56e-05,95496.0,95495.0,0.2781953]
[1735209518869,0.0010856,95496.0,95495.0,0.2881953]
[1735209519108,0.0010856,95496.0,95495.0,0.1977953]
[1735209519318,0.0010856,95496.0,95495.0,0.1957953]
[1735209519499,0.0020856,95496.0,95495.0,0.2037953]
[1735209519675,0.0010856,95496.0,95495.0,0.1967953]
[1735209519881,0.0020856,95496.0,95495.0,0.2047953]
[1735209520109,0.0020856,95496.0,95495.0,0.2037953]
[1735209520264,0.0020856,95496.0,95495.0,0.2057953]
[1735209522038,0.0020856,95496.0,95495.0,0.11]
[1735209524009,0.0020856,95496.0,95495.0,0.2057953]
[1735209524213,0.0020856,95496.0,95495.0,0.11]
[1735209524414,0.0020856,95496.0,95495.0,0.20684236]
[1735209524631,0.0020856,95496.0,95495.0,0.2057953]
[1735209526643,0.00180811,95496.0,95495.0,0.2057953]
[1735209529544,0.00189371,95496.0,95495.0,0.2057953]
[1735209530375,0.00189371,95496.0,95495.0,0.11]
[1735209531678,0.00189371,95496.0,95495.0,0.2057953]
[1735209540930,0.00189371,95496.0,95495.0,0.2059665]
[1735209541076,0.00189371,95496.0,95495.0,0.1101712]
[1735209543253,0.00189371,95496.0,95495.0,0.2059665]
[1735209544310,0.00189371,95496.0,95495.0,0.1101712]
[1735209545121,0.46531203,95496.0,95495.0,0.2059665]
[1735209545449,0.47318571,95496.0,95495.0,0.2059665]
[1735209548573,0.47318571,95496.0,95495.0,0.1101712]
[1735209549188,0.47318571,95496.0,95495.0,0.2059665]
[1735209549400,0.26375371,95496.0,95495.0,0.2059665]
[1735209552003,0.26375371,95496.0,95495.0,0.1101712]
[1735209552660,0.26375371,95496.0,95495.0,0.0101712]
[1735209553682,0.66649203,95496.0,95495.0,0.0101712]
[1735209553882,0.69643904,95496.0,95495.0,0.0101712]
[1735209554082,0.87033604,95496.0,95495.0,0.0101712]
[1735209554307,0.84038903,95496.0,95495.0,0.0081712]
[1735209554779,0.84138903,95496.0,95495.0,0.0081712]
[1735209555288,0.97946419,95496.0,95495.0,0.0001712]
[1735209555485,0.98046419,95496.0,95495.0,0.0001712]
[1735209555698,0.98046419,95496.0,95495.0,0.0021712]
[1735209556698,0.87647787,95496.0,95495.0,0.0021712]
[1735209557843,0.82973492,95496.0,95495.0,0.0021712]
[1735209558600,0.7355946,95496.0,95495.0,0.0021712]
[1735209564185,0.2629456,95496.0,95495.0,0.0021712]
[1735209564392,0.1129456,95496.0,95495.0,0.1021712]
[1735209564592,0.00895928,95496.0,95495.0,0.34022056]
[1735209565210,0.00895928,95496.0,95495.0,0.2790665]
[1735209566478,0.0010856,95496.0,95495.0,0.2840665]
[1735209566679,0.0010856,95496.0,95495.0,0.2850665]
[1735209567509,0.0010856,95496.0,95495.0,0.3326665]
[1735209567718,0.0010856,95496.0,95495.0,0.42723466]
[1735209568092,0.0010856,95496.0,95495.0,0.3326665]
[1735209568912,8.56e-05,95496.0,95495.0,0.3256665]
[1735209569287,0.0010856,95496.0,95495.0,0.3336665]
[1735209570365,0.0010856,95496.0,95495.0,0.3326665]
[1735209570745,0.0010856,95496.0,95495.0,0.3346665]
[1735209571155,0.0010856,95496.0,95495.0,0.53865282]
[1735209572094,8.56e-05,95496.0,95495.0,0.53065282]
[1735209572293,0.0010856,95496.0,95495.0,0.53965282]
[1735209572704,0.0010856,95496.0,95495.0,0.53065282]
[1735209572878,0.0020856,95496.0,95495.0,0.53765282]
[1735209573307,0.0020856,95496.0,95495.0,0.54165282]
[1735209573671,0.0020856,95496.0,95495.0,0.53765282]
[1735209574067,0.0030856,95496.0,95495.0,0.54165282]
[1735209574263,0.0010856,95496.0,95495.0,0.53265282]
[1735209574738,0.0020856,95496.0,95495.0,0.54165282]